[Event "*** Titled Tuesday Blitz"]
[Site "Chess.com"]
[Date "2021.02.16"]
[Round "10"]
[White "LenkaPtacnikova"]
[Black "canary2016"]
[Result "1-0"]
[WhiteElo "2091"]
[BlackElo "1957"]
[TimeControl "180+1"]
[EndTime "11:59:44 PST"]
[Termination "LenkaPtacnikova won by checkmate"]

1. e4 {[%clk 0:02:59.8]} 1... e5 {[%clk 0:02:57.4]} 2. Nf3 {[%clk 0:02:58.6]}
2... Nf6 {[%clk 0:02:55.9]} 3. Nxe5 {[%clk 0:02:57.7]} 3... d6 {[%clk
0:02:56.2]} 4. Nf3 {[%clk 0:02:56.1]} 4... Nxe4 {[%clk 0:02:56.3]} 5. d4 {[%clk
0:02:55.4]} 5... d5 {[%clk 0:02:56]} 6. Bd3 {[%clk 0:02:54.7]} 6... Bd6 {[%clk
0:02:55.8]} 7. c4 {[%clk 0:02:52.5]} 7... c6 {[%clk 0:02:53.8]} 8. Nc3 {[%clk
0:02:52.4]} 8... Bf5 {[%clk 0:02:47.2]} 9. O-O {[%clk 0:02:48.7]} 9... O-O
{[%clk 0:02:46.6]} 10. cxd5 {[%clk 0:02:44.3]} 10... cxd5 {[%clk 0:02:46]} 11.
Ne5 {[%clk 0:02:42.4]} 11... Bxe5 {[%clk 0:02:18.8]} 12. dxe5 {[%clk 0:02:41.5]}
12... Nc6 {[%clk 0:02:18.4]} 13. Re1 {[%clk 0:02:27.6]} 13... Re8 {[%clk
0:02:07.2]} 14. Bf4 {[%clk 0:02:11.5]} 14... Nxe5 {[%clk 0:01:55.8]} 15. Bxe4
{[%clk 0:02:06.5]} 15... dxe4 {[%clk 0:01:45]} 16. Nxe4 {[%clk 0:01:37.4]} 16...
Bxe4 {[%clk 0:01:35.6]} 17. Rxe4 {[%clk 0:01:33.7]} 17... Qxd1+ {[%clk
0:01:20.7]} 18. Rxd1 {[%clk 0:01:32.1]} 18... Ng6 {[%clk 0:01:14.6]} 19. Rxe8+
{[%clk 0:01:30]} 19... Rxe8 {[%clk 0:01:13.6]} 20. Be3 {[%clk 0:01:30.5]} 20...
b6 {[%clk 0:01:07.1]} 21. Rd7 {[%clk 0:01:29.7]} 21... Ra8 {[%clk 0:01:06.8]}
22. Kf1 {[%clk 0:01:23]} 22... Kf8 {[%clk 0:01:04.3]} 23. Ke2 {[%clk 0:01:20.6]}
23... Ke8 {[%clk 0:01:04.4]} 24. Rc7 {[%clk 0:01:18.9]} 24... Ne7 {[%clk
0:00:53.1]} 25. Bd4 {[%clk 0:01:09.3]} 25... Nd5 {[%clk 0:00:43.1]} 26. Rb7
{[%clk 0:01:03.2]} 26... Nf4+ {[%clk 0:00:35.9]} 27. Kf3 {[%clk 0:01:02.9]}
27... Ne6 {[%clk 0:00:35.1]} 28. Be3 {[%clk 0:00:51.9]} 28... h6 {[%clk
0:00:25]} 29. Ke4 {[%clk 0:00:50.5]} 29... Kf8 {[%clk 0:00:21.3]} 30. Ke5 {[%clk
0:00:43.2]} 30... Kg8 {[%clk 0:00:17.8]} 31. a4 {[%clk 0:00:37.3]} 31... Re8
{[%clk 0:00:09.3]} 32. Rxa7 {[%clk 0:00:28.4]} 32... Nc5+ {[%clk 0:00:07.6]} 33.
Kd5 {[%clk 0:00:23.3]} 33... Rd8+ {[%clk 0:00:07.3]} 34. Kc6 {[%clk 0:00:21.1]}
34... Nd3 {[%clk 0:00:05.2]} 35. b3 {[%clk 0:00:17.7]} 35... Rc8+ {[%clk
0:00:04]} 36. Kxb6 {[%clk 0:00:16.9]} 36... Rb8+ {[%clk 0:00:04.2]} 37. Rb7
{[%clk 0:00:16.6]} 37... Re8 {[%clk 0:00:04]} 38. a5 {[%clk 0:00:15.2]} 38...
Ne5 {[%clk 0:00:04]} 39. a6 {[%clk 0:00:13.6]} 39... Rd8 {[%clk 0:00:03.9]} 40.
a7 {[%clk 0:00:12.5]} 40... Nd7+ {[%clk 0:00:04]} 41. Kc7 {[%clk 0:00:11.8]}
41... Nc5 {[%clk 0:00:02.2]} 42. Bxc5 {[%clk 0:00:06.5]} 42... Re8 {[%clk
0:00:02.5]} 43. Rb8 {[%clk 0:00:06.5]} 43... Rxb8 {[%clk 0:00:02.6]} 44. axb8=Q+
{[%clk 0:00:06.1]} 44... Kh7 {[%clk 0:00:03.5]} 45. Qf8 {[%clk 0:00:05.9]} 45...
f6 {[%clk 0:00:03.6]} 46. Qf7 {[%clk 0:00:05.1]} 46... f5 {[%clk 0:00:03.8]} 47.
Bf8 {[%clk 0:00:05.3]} 47... h5 {[%clk 0:00:03]} 48. Qxg7# {[%clk 0:00:05.8]}
1-0

[Event "*** Titled Tuesday Blitz"]
[Site "Chess.com"]
[Date "2021.02.16"]
[Round "10"]
[White "Kostukov_Alex"]
[Black "Euge_chess"]
[Result "1-0"]
[WhiteElo "2316"]
[BlackElo "2104"]
[TimeControl "180+1"]
[EndTime "11:59:47 PST"]
[Termination "Kostukov_Alex won on time"]

1. g3 {[%clk 0:03:00.9]} 1... d5 {[%clk 0:02:59.8]} 2. Bg2 {[%clk 0:03:01.1]}
2... c6 {[%clk 0:03:00.2]} 3. d3 {[%clk 0:03:01.4]} 3... e5 {[%clk 0:03:00.3]}
4. e4 {[%clk 0:03:01.9]} 4... Nf6 {[%clk 0:03:00.1]} 5. Qe2 {[%clk 0:03:01.2]}
5... dxe4 {[%clk 0:02:52.2]} 6. dxe4 {[%clk 0:03:01.1]} 6... Bg4 {[%clk
0:02:50.5]} 7. Nf3 {[%clk 0:03:01.3]} 7... Bb4+ {[%clk 0:02:42.4]} 8. c3 {[%clk
0:03:00]} 8... Bc5 {[%clk 0:02:42]} 9. O-O {[%clk 0:02:59.6]} 9... O-O {[%clk
0:02:40.5]} 10. h3 {[%clk 0:02:59.8]} 10... Bxf3 {[%clk 0:02:37.6]} 11. Bxf3
{[%clk 0:03:00.7]} 11... Nbd7 {[%clk 0:02:35.6]} 12. a4 {[%clk 0:02:54]} 12...
Re8 {[%clk 0:02:30.9]} 13. b4 {[%clk 0:02:53.3]} 13... Bb6 {[%clk 0:02:25.4]}
14. a5 {[%clk 0:02:51.9]} 14... Bc7 {[%clk 0:02:25.5]} 15. Nd2 {[%clk
0:02:50.5]} 15... b6 {[%clk 0:02:25.4]} 16. Nc4 {[%clk 0:02:48.7]} 16... b5
{[%clk 0:02:11.2]} 17. Nd2 {[%clk 0:02:34]} 17... a6 {[%clk 0:02:11]} 18. Nb3
{[%clk 0:02:33.8]} 18... Qe7 {[%clk 0:02:09.1]} 19. Be3 {[%clk 0:02:33.4]} 19...
Qe6 {[%clk 0:02:00.7]} 20. Nc5 {[%clk 0:02:27.3]} 20... Nxc5 {[%clk 0:02:00]}
21. Bxc5 {[%clk 0:02:27.4]} 21... Bd6 {[%clk 0:01:56.4]} 22. Bxd6 {[%clk
0:02:10.2]} 22... Qxd6 {[%clk 0:01:56]} 23. Rfd1 {[%clk 0:02:04]} 23... Qe6
{[%clk 0:01:55.9]} 24. Kg2 {[%clk 0:01:56.8]} 24... Rad8 {[%clk 0:01:54.2]} 25.
Qe3 {[%clk 0:01:51.3]} 25... Qc4 {[%clk 0:01:49.4]} 26. Qb6 {[%clk 0:01:35.4]}
26... Rb8 {[%clk 0:01:21.8]} 27. Qxa6 {[%clk 0:01:24.9]} 27... Nxe4 {[%clk
0:01:16.7]} 28. Qa7 {[%clk 0:01:09.5]} 28... Nf6 {[%clk 0:01:07.8]} 29. Qc5
{[%clk 0:01:02]} 29... Qxc5 {[%clk 0:00:58.1]} 30. bxc5 {[%clk 0:01:02.9]} 30...
e4 {[%clk 0:00:57.8]} 31. Be2 {[%clk 0:00:59.1]} 31... Re5 {[%clk 0:00:55.4]}
32. c4 {[%clk 0:00:48]} 32... Rxc5 {[%clk 0:00:52.3]} 33. cxb5 {[%clk
0:00:47.7]} 33... cxb5 {[%clk 0:00:48.6]} 34. a6 {[%clk 0:00:47.1]} 34... Ra8
{[%clk 0:00:48.5]} 35. Ra5 {[%clk 0:00:43.6]} 35... g6 {[%clk 0:00:38.1]} 36.
Rxb5 {[%clk 0:00:35.3]} 36... Rc6 {[%clk 0:00:31.3]} 37. Rb7 {[%clk 0:00:30.7]}
37... Rc2 {[%clk 0:00:25.2]} 38. Kf1 {[%clk 0:00:29.3]} 38... e3 {[%clk
0:00:16.4]} 39. fxe3 {[%clk 0:00:28.2]} 39... Ne4 {[%clk 0:00:16]} 40. Bd3
{[%clk 0:00:19.1]} 40... Nxg3+ {[%clk 0:00:15.8]} 41. Ke1 {[%clk 0:00:19.4]}
41... Re8 {[%clk 0:00:14.2]} 42. Bxc2 {[%clk 0:00:11.8]} 42... Rxe3+ {[%clk
0:00:12]} 43. Kf2 {[%clk 0:00:11.3]} 43... Ra3 {[%clk 0:00:12.3]} 44. a7 {[%clk
0:00:10.3]} 44... Kg7 {[%clk 0:00:12.2]} 45. Rd8 {[%clk 0:00:08.6]} 45... Nh5
{[%clk 0:00:05.6]} 46. a8=Q {[%clk 0:00:08.2]} 1-0

[Event "*** Titled Tuesday Blitz"]
[Site "Chess.com"]
[Date "2021.02.16"]
[Round "10"]
[White "NemtsevIgor"]
[Black "IngOscarArdila"]
[Result "1-0"]
[WhiteElo "2375"]
[BlackElo "2178"]
[TimeControl "180+1"]
[EndTime "11:59:48 PST"]
[Termination "NemtsevIgor won on time"]

1. d4 {[%clk 0:03:00.9]} 1... Nf6 {[%clk 0:02:59.6]} 2. Bf4 {[%clk 0:03:00]}
2... g6 {[%clk 0:02:59]} 3. e3 {[%clk 0:02:59.6]} 3... Bg7 {[%clk 0:02:59.5]} 4.
Nf3 {[%clk 0:02:59.7]} 4... O-O {[%clk 0:02:59.7]} 5. Be2 {[%clk 0:02:59.9]}
5... d6 {[%clk 0:03:00]} 6. O-O {[%clk 0:02:59.6]} 6... Nh5 {[%clk 0:02:59.5]}
7. Bg5 {[%clk 0:02:59.2]} 7... h6 {[%clk 0:02:56.9]} 8. Bh4 {[%clk 0:02:59.4]}
8... Nd7 {[%clk 0:02:56.7]} 9. c4 {[%clk 0:02:56.3]} 9... b6 {[%clk 0:02:56.5]}
10. Nc3 {[%clk 0:02:55.8]} 10... Bb7 {[%clk 0:02:56.2]} 11. b4 {[%clk 0:02:52]}
11... a5 {[%clk 0:02:54.5]} 12. a3 {[%clk 0:02:49.5]} 12... Ndf6 {[%clk
0:02:42.6]} 13. Nd2 {[%clk 0:02:30.7]} 13... Qd7 {[%clk 0:02:24.3]} 14. Rc1
{[%clk 0:02:06.9]} 14... axb4 {[%clk 0:02:18.7]} 15. axb4 {[%clk 0:02:06.7]}
15... Ra3 {[%clk 0:02:16.4]} 16. Nb5 {[%clk 0:02:04.6]} 16... Ra2 {[%clk
0:02:15.5]} 17. d5 {[%clk 0:01:52.8]} 17... Rfa8 {[%clk 0:02:06.5]} 18. Nb3
{[%clk 0:01:23.6]} 18... Rb2 {[%clk 0:01:38.8]} 19. Rb1 {[%clk 0:01:15.1]} 19...
Rxb1 {[%clk 0:01:31.5]} 20. Qxb1 {[%clk 0:01:14.9]} 20... g5 {[%clk 0:01:31.7]}
21. Bg3 {[%clk 0:01:06]} 21... Nxg3 {[%clk 0:01:30.2]} 22. hxg3 {[%clk
0:01:06.3]} 22... Ra4 {[%clk 0:01:25.5]} 23. N3d4 {[%clk 0:01:05.1]} 23... c6
{[%clk 0:01:08.5]} 24. dxc6 {[%clk 0:00:56]} 24... Bxc6 {[%clk 0:01:08.5]} 25.
Nxc6 {[%clk 0:00:54.2]} 25... Qxc6 {[%clk 0:01:08.5]} 26. Nd4 {[%clk 0:00:53.8]}
26... Qa8 {[%clk 0:01:05.7]} 27. Bf3 {[%clk 0:00:45.6]} 27... Qa6 {[%clk
0:01:00.8]} 28. Nf5 {[%clk 0:00:41.6]} 28... Bf8 {[%clk 0:00:59]} 29. b5 {[%clk
0:00:30.8]} 29... Qa5 {[%clk 0:00:57.3]} 30. Be2 {[%clk 0:00:25]} 30... Qc3
{[%clk 0:00:49.3]} 31. Nd4 {[%clk 0:00:24]} 31... Bg7 {[%clk 0:00:44.3]} 32. Rc1
{[%clk 0:00:23.9]} 32... Qa5 {[%clk 0:00:43.6]} 33. Nc6 {[%clk 0:00:24]} 33...
Qa8 {[%clk 0:00:41.6]} 34. Nxe7+ {[%clk 0:00:24]} 34... Kf8 {[%clk 0:00:41.6]}
35. Nf5 {[%clk 0:00:24.2]} 35... Ne4 {[%clk 0:00:38.2]} 36. Nxg7 {[%clk
0:00:21.7]} 36... Kxg7 {[%clk 0:00:37.4]} 37. Bf3 {[%clk 0:00:22.1]} 37... f5
{[%clk 0:00:37.4]} 38. g4 {[%clk 0:00:21.8]} 38... Qe8 {[%clk 0:00:24.4]} 39.
gxf5 {[%clk 0:00:21.7]} 39... Nc5 {[%clk 0:00:23.3]} 40. f6+ {[%clk 0:00:20.4]}
40... Kxf6 {[%clk 0:00:21.5]} 41. Rd1 {[%clk 0:00:20.7]} 41... Qe5 {[%clk
0:00:08]} 42. Qh7 {[%clk 0:00:19.6]} 42... Ra1 {[%clk 0:00:07.3]} 43. Qh8+
{[%clk 0:00:18.1]} 43... Kg6 {[%clk 0:00:05.8]} 44. Qg8+ {[%clk 0:00:13.3]}
44... Kf6 {[%clk 0:00:03.7]} 45. Qf8+ {[%clk 0:00:12.5]} 45... Kg6 {[%clk
0:00:01.2]} 46. Rxa1 {[%clk 0:00:10.2]} 1-0

[Event "*** Titled Tuesday Blitz"]
[Site "Chess.com"]
[Date "2021.02.16"]
[Round "10"]
[White "Grineva_Marianna"]
[Black "LileKoridze"]
[Result "0-1"]
[WhiteElo "2231"]
[BlackElo "2369"]
[TimeControl "180+1"]
[EndTime "11:59:48 PST"]
[Termination "LileKoridze won on time"]

1. e4 {[%clk 0:03:00.9]} 1... c5 {[%clk 0:02:59.7]} 2. Nf3 {[%clk 0:03:01]} 2...
d6 {[%clk 0:02:59.9]} 3. d4 {[%clk 0:03:01.2]} 3... cxd4 {[%clk 0:02:59]} 4.
Nxd4 {[%clk 0:03:02.1]} 4... Nf6 {[%clk 0:02:58.6]} 5. Nc3 {[%clk 0:03:01.9]}
5... Nc6 {[%clk 0:02:59]} 6. f3 {[%clk 0:02:59.3]} 6... e5 {[%clk 0:02:59.2]} 7.
Nb3 {[%clk 0:02:57.6]} 7... Be7 {[%clk 0:02:58]} 8. Be3 {[%clk 0:02:57.9]} 8...
O-O {[%clk 0:02:57.4]} 9. Be2 {[%clk 0:02:47]} 9... Be6 {[%clk 0:02:57.2]} 10.
Nd5 {[%clk 0:02:46.9]} 10... a5 {[%clk 0:02:54.8]} 11. Bb5 {[%clk 0:02:44.8]}
11... Na7 {[%clk 0:02:44.2]} 12. a4 {[%clk 0:02:27.4]} 12... Nxd5 {[%clk
0:02:27.4]} 13. exd5 {[%clk 0:02:25]} 13... Nxb5 {[%clk 0:02:18.5]} 14. dxe6
{[%clk 0:02:09.6]} 14... Nc7 {[%clk 0:02:17.3]} 15. exf7+ {[%clk 0:02:08.9]}
15... Rxf7 {[%clk 0:02:18.2]} 16. O-O {[%clk 0:02:02.2]} 16... d5 {[%clk
0:01:57.7]} 17. Bb6 {[%clk 0:01:59.3]} 17... d4 {[%clk 0:01:11.6]} 18. Nxa5
{[%clk 0:01:44.8]} 18... Qd7 {[%clk 0:01:04.5]} 19. Nc4 {[%clk 0:01:14.6]} 19...
Qc6 {[%clk 0:00:52]} 20. b3 {[%clk 0:00:55.5]} 20... Nd5 {[%clk 0:00:49.4]} 21.
a5 {[%clk 0:00:41]} 21... Bf6 {[%clk 0:00:20.4]} 22. Re1 {[%clk 0:00:24.8]}
22... Nf4 {[%clk 0:00:17]} 23. Nxe5 {[%clk 0:00:15.4]} 23... Bxe5 {[%clk
0:00:16.8]} 24. Rxe5 {[%clk 0:00:16.3]} 24... d3 {[%clk 0:00:14.3]} 25. cxd3
{[%clk 0:00:14.2]} 25... h6 {[%clk 0:00:13.9]} 26. Re4 {[%clk 0:00:12.8]} 26...
Qd5 {[%clk 0:00:11.1]} 27. Rc1 {[%clk 0:00:12.6]} 27... Nxd3 {[%clk 0:00:08.5]}
28. Rc5 {[%clk 0:00:11.5]} 28... Qd7 {[%clk 0:00:06.5]} 29. Rcc4 {[%clk
0:00:09.1]} 29... Ne5 {[%clk 0:00:03.6]} 30. Qxd7 {[%clk 0:00:07.4]} 30... Nxd7
{[%clk 0:00:04.5]} 31. Rc7 {[%clk 0:00:07.2]} 31... Nxb6 {[%clk 0:00:04.7]} 32.
axb6 {[%clk 0:00:07.3]} 32... Ra1+ {[%clk 0:00:05.1]} 33. Kf2 {[%clk 0:00:07.3]}
33... Ra2+ {[%clk 0:00:05.6]} 34. Kg3 {[%clk 0:00:07.7]} 34... Rf5 {[%clk
0:00:04.3]} 35. Rxb7 {[%clk 0:00:06.7]} 35... Rg5+ {[%clk 0:00:04.6]} 36. Rg4
{[%clk 0:00:06.3]} 36... Rxg4+ {[%clk 0:00:04.1]} 37. fxg4 {[%clk 0:00:07.2]}
37... Rb2 {[%clk 0:00:04.5]} 38. Rb8+ {[%clk 0:00:06.1]} 38... Kh7 {[%clk
0:00:05]} 39. b7 {[%clk 0:00:05.9]} 39... Rxb3+ {[%clk 0:00:05.9]} 40. Kf4
{[%clk 0:00:05.3]} 40... Kg6 {[%clk 0:00:06.2]} 41. h4 {[%clk 0:00:04]} 41...
Rb4+ {[%clk 0:00:06.5]} 42. Kg3 {[%clk 0:00:03.8]} 42... Rb3+ {[%clk 0:00:06.3]}
43. Kh2 {[%clk 0:00:04.2]} 43... Rb4 {[%clk 0:00:06.4]} 44. Kh3 {[%clk 0:00:04]}
44... Rb3+ {[%clk 0:00:06.5]} 45. g3 {[%clk 0:00:04.3]} 45... Rb2 {[%clk
0:00:06.9]} 46. h5+ {[%clk 0:00:01.1]} 46... Kf7 {[%clk 0:00:07.1]} 0-1

[Event "*** Titled Tuesday Blitz"]
[Site "Chess.com"]
[Date "2021.02.16"]
[Round "10"]
[White "figo13"]
[Black "mr65"]
[Result "1/2-1/2"]
[WhiteElo "2294"]
[BlackElo "2141"]
[TimeControl "180+1"]
[EndTime "11:59:49 PST"]
[Termination "Game drawn by agreement"]

1. e4 {[%clk 0:02:57.3]} 1... e5 {[%clk 0:02:59.2]} 2. Nf3 {[%clk 0:02:56.1]}
2... Nc6 {[%clk 0:02:59]} 3. Bb5 {[%clk 0:02:55]} 3... a6 {[%clk 0:02:58.8]} 4.
Ba4 {[%clk 0:02:54.4]} 4... Nf6 {[%clk 0:02:58.6]} 5. O-O {[%clk 0:02:52.4]}
5... Be7 {[%clk 0:02:58]} 6. Re1 {[%clk 0:02:52.3]} 6... b5 {[%clk 0:02:58.1]}
7. Bb3 {[%clk 0:02:52.7]} 7... O-O {[%clk 0:02:58.1]} 8. c3 {[%clk 0:02:50.8]}
8... d5 {[%clk 0:02:57.6]} 9. exd5 {[%clk 0:02:48.7]} 9... Nxd5 {[%clk
0:02:57.1]} 10. d3 {[%clk 0:02:46.9]} 10... Bg4 {[%clk 0:02:42.7]} 11. h3 {[%clk
0:02:43.3]} 11... Bh5 {[%clk 0:02:41.6]} 12. a4 {[%clk 0:02:42.1]} 12... b4
{[%clk 0:02:37.7]} 13. a5 {[%clk 0:02:31.4]} 13... bxc3 {[%clk 0:02:32.5]} 14.
bxc3 {[%clk 0:02:28.7]} 14... Bc5 {[%clk 0:02:18.5]} 15. g4 {[%clk 0:02:16.2]}
15... Bg6 {[%clk 0:02:17.2]} 16. Nxe5 {[%clk 0:02:15.5]} 16... Nxe5 {[%clk
0:02:14.9]} 17. Rxe5 {[%clk 0:02:16.4]} 17... c6 {[%clk 0:02:12.3]} 18. Bxd5
{[%clk 0:01:46.6]} 18... cxd5 {[%clk 0:02:10.9]} 19. Ba3 {[%clk 0:01:47.2]}
19... Qd6 {[%clk 0:01:46.4]} 20. Re3 {[%clk 0:01:36.2]} 20... Bxa3 {[%clk
0:01:39.2]} 21. Nxa3 {[%clk 0:01:37.1]} 21... d4 {[%clk 0:01:38.3]} 22. cxd4
{[%clk 0:01:33]} 22... Qxd4 {[%clk 0:01:36.8]} 23. Nc4 {[%clk 0:01:33.3]} 23...
Rad8 {[%clk 0:01:31.1]} 24. Ne5 {[%clk 0:01:26.2]} 24... h5 {[%clk 0:01:05.2]}
25. Ra4 {[%clk 0:01:14.7]} 25... Qd5 {[%clk 0:01:00.6]} 26. Nxg6 {[%clk
0:00:49]} 26... fxg6 {[%clk 0:00:59.4]} 27. d4 {[%clk 0:00:49.6]} 27... Rf4
{[%clk 0:00:47.1]} 28. Qb3 {[%clk 0:00:40.3]} 28... Qxb3 {[%clk 0:00:42.3]} 29.
Rxb3 {[%clk 0:00:41.2]} 29... hxg4 {[%clk 0:00:41.3]} 30. hxg4 {[%clk
0:00:34.7]} 30... Rxg4+ {[%clk 0:00:40]} 31. Kf1 {[%clk 0:00:34.9]} 31... Rgxd4
{[%clk 0:00:24.7]} 32. Rxd4 {[%clk 0:00:35.8]} 32... Rxd4 {[%clk 0:00:24.2]} 33.
Rb6 {[%clk 0:00:36.3]} 33... Kh7 {[%clk 0:00:23.3]} 34. Rxa6 {[%clk 0:00:35.8]}
34... g5 {[%clk 0:00:21.2]} 35. Ra8 {[%clk 0:00:28.9]} 35... Ra4 {[%clk
0:00:19.6]} 36. a6 {[%clk 0:00:29.2]} 36... g4 {[%clk 0:00:18.6]} 37. Kg2 {[%clk
0:00:28.4]} 37... Kg6 {[%clk 0:00:18.1]} 38. Kg3 {[%clk 0:00:28]} 38... Kg5
{[%clk 0:00:17.1]} 39. a7 {[%clk 0:00:22.9]} 39... Ra3+ {[%clk 0:00:15.3]} 40.
Kg2 {[%clk 0:00:23.1]} 40... g6 {[%clk 0:00:15.3]} 41. Kf1 {[%clk 0:00:22.9]}
41... Ra2 {[%clk 0:00:14.4]} 42. Ke1 {[%clk 0:00:23.3]} 42... g3 {[%clk
0:00:12.1]} 43. fxg3 {[%clk 0:00:18.9]} 43... Kg4 {[%clk 0:00:11.3]} 44. Kf1
{[%clk 0:00:17.8]} 44... g5 {[%clk 0:00:10.3]} 45. Ke1 {[%clk 0:00:14.3]} 45...
Kxg3 {[%clk 0:00:09.6]} 46. Rg8 {[%clk 0:00:14.7]} 46... Rxa7 {[%clk 0:00:07.9]}
47. Rxg5+ {[%clk 0:00:14.1]} 47... Kf4 {[%clk 0:00:07.1]} 48. Rg8 {[%clk
0:00:12.8]} 48... Ke3 {[%clk 0:00:06.7]} 49. Rg3+ {[%clk 0:00:09.4]} 1/2-1/2

[Event "*** Titled Tuesday Blitz"]
[Site "Chess.com"]
[Date "2021.02.16"]
[Round "10"]
[White "GLeruste"]
[Black "chescomhuynya"]
[Result "1/2-1/2"]
[WhiteElo "2462"]
[BlackElo "2587"]
[TimeControl "180+1"]
[EndTime "11:59:53 PST"]
[Termination "Game drawn by repetition"]

1. d4 {[%clk 0:03:00.9]} 1... Nf6 {[%clk 0:02:59.6]} 2. Nc3 {[%clk 0:02:59.3]}
2... d5 {[%clk 0:02:59.5]} 3. Bf4 {[%clk 0:02:58.9]} 3... c5 {[%clk 0:02:56.6]}
4. e3 {[%clk 0:02:58.9]} 4... cxd4 {[%clk 0:02:56.9]} 5. exd4 {[%clk 0:02:59.4]}
5... a6 {[%clk 0:02:57.3]} 6. Nf3 {[%clk 0:02:59.3]} 6... Bg4 {[%clk 0:02:55.3]}
7. h3 {[%clk 0:02:58.7]} 7... Bh5 {[%clk 0:02:55.3]} 8. g4 {[%clk 0:02:56.6]}
8... Bg6 {[%clk 0:02:55.2]} 9. Ne5 {[%clk 0:02:56.8]} 9... Nc6 {[%clk
0:02:55.8]} 10. h4 {[%clk 0:02:55.9]} 10... Qb6 {[%clk 0:02:47.1]} 11. Nxc6
{[%clk 0:02:49.3]} 11... bxc6 {[%clk 0:02:46]} 12. Na4 {[%clk 0:02:15]} 12...
Qa5+ {[%clk 0:02:44.7]} 13. c3 {[%clk 0:02:15.3]} 13... h5 {[%clk 0:02:35]} 14.
g5 {[%clk 0:02:01.1]} 14... Nd7 {[%clk 0:02:35.2]} 15. Bg2 {[%clk 0:01:54.2]}
15... e6 {[%clk 0:02:35.2]} 16. O-O {[%clk 0:01:53.4]} 16... Be7 {[%clk
0:02:10.3]} 17. b4 {[%clk 0:01:52.8]} 17... Qd8 {[%clk 0:02:09.8]} 18. Re1
{[%clk 0:01:42.9]} 18... Bf5 {[%clk 0:02:06.5]} 19. Nc5 {[%clk 0:01:29.2]} 19...
g6 {[%clk 0:02:03.1]} 20. Nb7 {[%clk 0:01:23.9]} 20... Qb6 {[%clk 0:02:00.7]}
21. Nd6+ {[%clk 0:01:19.9]} 21... Kf8 {[%clk 0:01:45.2]} 22. a4 {[%clk
0:01:14.1]} 22... Bg4 {[%clk 0:01:00.6]} 23. Bf3 {[%clk 0:01:03.7]} 23... Bxf3
{[%clk 0:00:59.8]} 24. Qxf3 {[%clk 0:01:04.6]} 24... Kg7 {[%clk 0:00:56.1]} 25.
Nxf7 {[%clk 0:00:52.4]} 25... Rhf8 {[%clk 0:00:32.2]} 26. Ne5 {[%clk 0:00:52.1]}
26... Nxe5 {[%clk 0:00:19.6]} 27. Bxe5+ {[%clk 0:00:53]} 27... Kh7 {[%clk
0:00:20.3]} 28. Qh3 {[%clk 0:00:49.8]} 28... Rf5 {[%clk 0:00:20.1]} 29. f4
{[%clk 0:00:46.1]} 29... a5 {[%clk 0:00:19.5]} 30. bxa5 {[%clk 0:00:40.4]} 30...
Qxa5 {[%clk 0:00:14.5]} 31. Reb1 {[%clk 0:00:37.7]} 31... Ra7 {[%clk 0:00:14.8]}
32. Qd3 {[%clk 0:00:37]} 32... Rf7 {[%clk 0:00:08.7]} 33. Rb8 {[%clk 0:00:36.6]}
33... Rf8 {[%clk 0:00:05.7]} 34. Rxf8 {[%clk 0:00:32.3]} 34... Bxf8 {[%clk
0:00:04.6]} 35. Bf6 {[%clk 0:00:24.5]} 35... Rb7 {[%clk 0:00:03.6]} 36. Qe3
{[%clk 0:00:23.9]} 36... c5 {[%clk 0:00:02.1]} 37. Qxe6 {[%clk 0:00:16.2]} 37...
Qxc3 {[%clk 0:00:02.4]} 38. Re1 {[%clk 0:00:15.7]} 38... Qg3+ {[%clk 0:00:03]}
39. Kf1 {[%clk 0:00:15.7]} 39... Qf3+ {[%clk 0:00:03.6]} 40. Kg1 {[%clk
0:00:16]} 40... Qg3+ {[%clk 0:00:04.3]} 41. Kh1 {[%clk 0:00:16.4]} 41... Qxh4+
{[%clk 0:00:04.2]} 42. Kg1 {[%clk 0:00:16.4]} 42... Qg3+ {[%clk 0:00:04.8]} 43.
Kf1 {[%clk 0:00:16.1]} 43... Qf3+ {[%clk 0:00:05.1]} 44. Kg1 {[%clk 0:00:16.4]}
44... cxd4 {[%clk 0:00:05.6]} 45. Qe8 {[%clk 0:00:13.2]} 45... d3 {[%clk
0:00:04.6]} 46. Qxf8 {[%clk 0:00:11.6]} 46... Qg3+ {[%clk 0:00:05]} 47. Kf1
{[%clk 0:00:11.6]} 47... Qxf4+ {[%clk 0:00:05.6]} 48. Kg1 {[%clk 0:00:11.7]}
48... Qg4+ {[%clk 0:00:05.9]} 49. Kf1 {[%clk 0:00:11.9]} 49... Qf4+ {[%clk
0:00:06]} 50. Kg1 {[%clk 0:00:12.4]} 50... Qg4+ {[%clk 0:00:06.5]} 51. Kf1
{[%clk 0:00:12.8]} 51... Qh3+ {[%clk 0:00:07.1]} 52. Kg1 {[%clk 0:00:13.1]}
52... Qg3+ {[%clk 0:00:07.8]} 53. Kf1 {[%clk 0:00:13.5]} 53... Qf3+ {[%clk
0:00:03.9]} 54. Kg1 {[%clk 0:00:13.8]} 54... Qg4+ {[%clk 0:00:04.5]} 1/2-1/2